[Event "Titled Tuesday Blitz July 11 Late 2023"]
[White "Rosen, Eric"]
[Black "Pinero Rodriguez, Carlos Jose"]
[WhiteFideId "2032562"]
[BlackFideId "3901726"]
[WhiteElo "2698"]
[BlackElo "2437"]
[Result "0-1"]
[Round "8"]
[TimeControl "180+2"]
[Date "2023.07.11"]
[WhiteClock "0:00:03"]
[BlackClock "0:00:15"]
[Board "39"]

1. d4 {[%clk 0:03:00]}  Nf6 {[%clk 0:02:59]} 2. Bf4 {[%clk 0:02:59]}  e6 {[%clk 0:02:59]} 3. e3 {[%clk 0:02:59]}  d6 {[%clk 0:02:57]} 4. Nf3 {[%clk 0:02:57]}  b6 {[%clk 0:02:58]} 5. c4 {[%clk 0:02:57]}  Bb7 {[%clk 0:02:58]} 6. Nc3 {[%clk 0:02:57]}  h6 {[%clk 0:02:58]} 7. Qc2 {[%clk 0:02:58]}  Nh5 {[%clk 0:02:58]} 8. Bg3 {[%clk 0:02:58]}  Nxg3 {[%clk 0:02:59]} 9. hxg3 {[%clk 0:02:59]}  Nd7 {[%clk 0:02:59]} 10. O-O-O {[%clk 0:02:59]}  a6 {[%clk 0:02:57]} 11. Kb1 {[%clk 0:02:59]}  c5 {[%clk 0:02:58]} 12. g4 {[%clk 0:02:58]}  Be7 {[%clk 0:02:57]} 13. d5 {[%clk 0:02:46]}  e5 {[%clk 0:02:56]} 14. Bd3 {[%clk 0:02:42]}  Qc7 {[%clk 0:02:47]} 15. g5 {[%clk 0:02:30]}  h5 {[%clk 0:02:42]} 16. g6 {[%clk 0:02:27]}  f6 {[%clk 0:02:39]} 17. Bf5 {[%clk 0:02:25]}  Nf8 {[%clk 0:02:38]} 18. g4 {[%clk 0:02:21]}  h4 {[%clk 0:02:37]} 19. Nxh4 {[%clk 0:02:16]}  Bc8 {[%clk 0:02:30]} 20. Nf3 {[%clk 0:02:15]}  Rg8 {[%clk 0:02:25]} 21. Rh5 {[%clk 0:02:02]}  Bd7 {[%clk 0:02:25]} 22. Rdh1 {[%clk 0:02:00]}  O-O-O {[%clk 0:02:23]} 23. Rh8 {[%clk 0:01:55]}  Rxh8 {[%clk 0:02:19]} 24. Rxh8 {[%clk 0:01:52]}  Kb7 {[%clk 0:02:15]} 25. e4 {[%clk 0:01:40]}  Be8 {[%clk 0:02:11]} 26. Nh4 {[%clk 0:01:39]}  Nd7 {[%clk 0:01:51]} 27. Rg8 {[%clk 0:01:30]}  Bf8 {[%clk 0:01:48]} 28. Qb3 {[%clk 0:01:15]}  Rb8 {[%clk 0:01:36]} 29. a4 {[%clk 0:01:14]}  Ka7 {[%clk 0:01:34]} 30. Qa3 {[%clk 0:00:57]}  Qd8 {[%clk 0:01:30]} 31. Be6 {[%clk 0:00:46]}  Rb7 {[%clk 0:01:14]} 32. Ka2 {[%clk 0:00:35]}  Rc7 {[%clk 0:01:04]} 33. f3 {[%clk 0:00:31]}  Rb7 {[%clk 0:01:04]} 34. Nd1 {[%clk 0:00:31]}  Kb8 {[%clk 0:01:02]} 35. Nc3 {[%clk 0:00:27]}  Ka7 {[%clk 0:00:59]} 36. Qb3 {[%clk 0:00:27]}  Qb8 {[%clk 0:00:54]} 37. Kb1 {[%clk 0:00:22]}  Qd8 {[%clk 0:00:54]} 38. Bf5 {[%clk 0:00:17]}  Qe7 {[%clk 0:00:38]} 39. Ng2 {[%clk 0:00:16]}  Qd8 {[%clk 0:00:33]} 40. Ne3 {[%clk 0:00:16]}  Ka8 {[%clk 0:00:31]} 41. Qc2 {[%clk 0:00:16]}  Ka7 {[%clk 0:00:31]} 42. Qh2 {[%clk 0:00:16]}  Rb8 {[%clk 0:00:24]} 43. Qh8 {[%clk 0:00:15]}  Kb7 {[%clk 0:00:20]} 44. Rxf8 {[%clk 0:00:15]}  Nxf8 {[%clk 0:00:20]} 45. Qxf8 {[%clk 0:00:16]}  Qc7 {[%clk 0:00:21]} 46. Qh8 {[%clk 0:00:08]}  Bxa4 {[%clk 0:00:20]} 47. Qh7 {[%clk 0:00:06]}  Be8 {[%clk 0:00:19]} 48. Be6 {[%clk 0:00:06]}  b5 {[%clk 0:00:19]} 49. Nf5 {[%clk 0:00:05]}  b4 {[%clk 0:00:19]} 50. Ne2 {[%clk 0:00:02]}  Ka8 {[%clk 0:00:18]} 51. Qxg7 {[%clk 0:00:03]}  Qa5 {[%clk 0:00:18]} 52. Nc1 {[%clk 0:00:02]}  b3 {[%clk 0:00:18]} 53. Qc7 {[%clk 0:00:03]}  Qxc7 {[%clk 0:00:18]} 54. g7 {[%clk 0:00:03]}  Bf7 {[%clk 0:00:17]} 55. Nh6 {[%clk 0:00:01]}  Bxe6 {[%clk 0:00:16]} 56. dxe6 {[%clk 0:00:02]}  Qxg7 {[%clk 0:00:16]} 57. Nf5 {[%clk 0:00:02]}  Qg5 {[%clk 0:00:16]} 58. e7 {[%clk 0:00:03]}  Qd2 {[%clk 0:00:16]} 59. Nxb3 {[%clk 0:00:03]}  Qd3+ {[%clk 0:00:14]} 60. Kc1 {[%clk 0:00:01]}  Qxb3 {[%clk 0:00:15]} 61. Nxd6 {[%clk 0:00:02]}  Qe3+ {[%clk 0:00:13]} 62. Kc2 {[%clk 0:00:01]}  Qxf3 {[%clk 0:00:13]} 63. e8=Q {[%clk 0:00:01]}  Rxe8 {[%clk 0:00:13]} 64. Nxe8 {[%clk 0:00:02]}  Qxe4+ {[%clk 0:00:14]} 65. Kb3 {[%clk 0:00:02]}  Qd3+ {[%clk 0:00:14]} 66. Ka2 {[%clk 0:00:01]}  Qxc4+ {[%clk 0:00:14]} 67. Kb1 {[%clk 0:00:02]}  Qd3+ {[%clk 0:00:14]} 68. Ka1 {[%clk 0:00:01]}  Qd1+ {[%clk 0:00:14]} 69. Ka2 {[%clk 0:00:02]}  Qa4+ {[%clk 0:00:15]} 70. Kb1 {[%clk 0:00:01]}  Qxe8 {[%clk 0:00:15]} 71. b3 {[%clk 0:00:02]}  Qg6+ {[%clk 0:00:16]} 72. Kb2 {[%clk 0:00:03]}  Qxg4 {[%clk 0:00:16]} 73. Ka3 {[%clk 0:00:03]}  Qb4+ {[%clk 0:00:17]} 74. Ka2 {[%clk 0:00:04]}  c4 {[%clk 0:00:17]} 75. Ka1 {[%clk 0:00:03]}  e4 {[%clk 0:00:15]} 76. Kb2 {[%clk 0:00:03]}  Qxb3+ {[%clk 0:00:15]} 77. Ka1 {[%clk 0:00:03]}  Qb4 {[%clk 0:00:14]} 78. Ka2 {[%clk 0:00:03]}  c3 {[%clk 0:00:14]} 79. Ka1 {[%clk 0:00:03]}  Qb2# {[%clk 0:00:15]} 0-1


[Site "https://www.chess.com"]

[Event "Titled Tuesday Blitz July 11 Late 2023"]
[White "Martinez Ramirez, Lennis"]
[Black "Vujacic, Igor"]
[WhiteFideId "3509079"]
[BlackFideId "932620"]
[WhiteElo "2653"]
[BlackElo "2245"]
[Result "0-1"]
[Round "8"]
[TimeControl "180+2"]
[Date "2023.07.11"]
[WhiteClock "0:00:20"]
[BlackClock "0:00:06"]
[Board "40"]

1. d4 {[%clk 0:03:00]}  d5 {[%clk 0:02:58]} 2. c4 {[%clk 0:03:00]}  e6 {[%clk 0:02:59]} 3. Nf3 {[%clk 0:03:01]}  a6 {[%clk 0:02:59]} 4. Nbd2 {[%clk 0:02:57]}  dxc4 {[%clk 0:02:57]} 5. Nxc4 {[%clk 0:02:57]}  b5 {[%clk 0:02:57]} 6. Nce5 {[%clk 0:02:56]}  Bb7 {[%clk 0:02:57]} 7. a4 {[%clk 0:02:55]}  c5 {[%clk 0:02:45]} 8. axb5 {[%clk 0:02:53]}  axb5 {[%clk 0:02:45]} 9. Rxa8 {[%clk 0:02:53]}  Bxa8 {[%clk 0:02:45]} 10. e3 {[%clk 0:02:54]}  c4 {[%clk 0:02:40]} 11. b3 {[%clk 0:02:53]}  Qa5+ {[%clk 0:02:37]} 12. Ke2 {[%clk 0:02:48]}  Qa2+ {[%clk 0:02:28]} 13. Qd2 {[%clk 0:02:20]}  cxb3 {[%clk 0:02:25]} 14. Nd3 {[%clk 0:02:12]}  Nf6 {[%clk 0:02:12]} 15. Bb2 {[%clk 0:02:07]}  Bd6 {[%clk 0:02:04]} 16. g3 {[%clk 0:01:57]}  Bxf3+ {[%clk 0:01:37]} 17. Kxf3 {[%clk 0:01:57]}  Qa8+ {[%clk 0:01:37]} 18. Ke2 {[%clk 0:01:50]}  Qxh1 {[%clk 0:01:38]} 19. h3 {[%clk 0:01:44]}  Qc6 {[%clk 0:01:32]} 20. Qa5 {[%clk 0:01:41]}  O-O {[%clk 0:01:16]} 21. Ne1 {[%clk 0:01:41]}  Qc4+ {[%clk 0:01:14]} 22. Nd3 {[%clk 0:01:40]}  Ne4 {[%clk 0:01:09]} 23. Kf3 {[%clk 0:01:38]}  Nd2+ {[%clk 0:01:08]} 24. Qxd2 {[%clk 0:01:38]}  Qc2 {[%clk 0:01:00]} 25. Qa5 {[%clk 0:01:33]}  Qc6+ {[%clk 0:00:45]} 26. Ke2 {[%clk 0:01:30]}  Nd7 {[%clk 0:00:40]} 27. Qc3 {[%clk 0:00:59]}  Qxc3 {[%clk 0:00:28]} 28. Bxc3 {[%clk 0:01:00]}  Ra8 {[%clk 0:00:27]} 29. Nc1 {[%clk 0:00:55]}  b4 {[%clk 0:00:23]} 30. Bb2 {[%clk 0:00:53]}  Nb6 {[%clk 0:00:19]} 31. Bg2 {[%clk 0:00:35]}  Rc8 {[%clk 0:00:14]} 32. Kd1 {[%clk 0:00:26]}  Na4 {[%clk 0:00:11]} 33. Nd3 {[%clk 0:00:22]}  Nxb2+ {[%clk 0:00:05]} 34. Nxb2 {[%clk 0:00:23]}  Rc2 {[%clk 0:00:06]} 35. Nd3 {[%clk 0:00:23]}  Ra2 {[%clk 0:00:04]} 36. Be4 {[%clk 0:00:23]}  f5 {[%clk 0:00:03]} 37. Bc6 {[%clk 0:00:22]}  Kf7 {[%clk 0:00:02]} 38. Bb5 {[%clk 0:00:22]}  Rc2 {[%clk 0:00:02]} 39. Ba4 {[%clk 0:00:22]}  Rc3 {[%clk 0:00:03]} 40. Kd2 {[%clk 0:00:22]}  Kf6 {[%clk 0:00:03]} 41. f4 {[%clk 0:00:18]}  g6 {[%clk 0:00:02]} 42. Bb5 {[%clk 0:00:18]}  Rc2+ {[%clk 0:00:02]} 43. Kd1 {[%clk 0:00:18]}  Rh2 {[%clk 0:00:03]} 44. g4 {[%clk 0:00:18]}  Rxh3 {[%clk 0:00:02]} 45. g5+ {[%clk 0:00:19]}  Ke7 {[%clk 0:00:02]} 46. Kd2 {[%clk 0:00:19]}  Rh2+ {[%clk 0:00:03]} 47. Kd1 {[%clk 0:00:19]}  b2 {[%clk 0:00:03]} 48. Nxb2 {[%clk 0:00:16]}  Rxb2 {[%clk 0:00:04]} 49. d5 {[%clk 0:00:16]}  exd5 {[%clk 0:00:04]} 50. Bd3 {[%clk 0:00:16]}  b3 {[%clk 0:00:04]} 51. Bxf5 {[%clk 0:00:16]}  gxf5 {[%clk 0:00:04]} 52. e4 {[%clk 0:00:16]}  dxe4 {[%clk 0:00:04]} 53. Ke1 {[%clk 0:00:16]}  Kf7 {[%clk 0:00:04]} 54. Kf1 {[%clk 0:00:16]}  Kg6 {[%clk 0:00:05]} 55. Kg1 {[%clk 0:00:17]}  Bxf4 {[%clk 0:00:05]} 56. Kf1 {[%clk 0:00:18]}  Rc2 {[%clk 0:00:05]} 57. Ke1 {[%clk 0:00:19]}  b2 {[%clk 0:00:05]} 58. Kd1 {[%clk 0:00:20]}  b1=Q# {[%clk 0:00:06]} 0-1


[Site "https://www.chess.com"]

[Event "Titled Tuesday Blitz July 11 Late 2023"]
[White "GAO"]
[Black "Schmakel, Sam"]
[BlackFideId "2039311"]
[WhiteElo "2410"]
[BlackElo "2778"]
[Result "0-1"]
[Round "8"]
[TimeControl "180+2"]
[Date "2023.07.11"]
[WhiteClock "0:00:06"]
[BlackClock "0:00:16"]
[Board "41"]

1. e4 {[%clk 0:02:58]}  e5 {[%clk 0:02:58]} 2. Nf3 {[%clk 0:02:58]}  Nc6 {[%clk 0:02:58]} 3. d4 {[%clk 0:02:59]}  exd4 {[%clk 0:02:58]} 4. Bc4 {[%clk 0:02:59]}  Bc5 {[%clk 0:02:57]} 5. c3 {[%clk 0:02:59]}  Nf6 {[%clk 0:02:55]} 6. e5 {[%clk 0:02:59]}  d5 {[%clk 0:02:55]} 7. Bb5 {[%clk 0:02:59]}  Ne4 {[%clk 0:02:55]} 8. cxd4 {[%clk 0:02:59]}  Bb6 {[%clk 0:02:55]} 9. O-O {[%clk 0:02:56]}  O-O {[%clk 0:02:55]} 10. Nc3 {[%clk 0:02:56]}  Bg4 {[%clk 0:02:52]} 11. h3 {[%clk 0:02:54]}  Bh5 {[%clk 0:02:52]} 12. Be3 {[%clk 0:02:48]}  Nxc3 {[%clk 0:02:46]} 13. bxc3 {[%clk 0:02:47]}  f6 {[%clk 0:02:46]} 14. exf6 {[%clk 0:02:43]}  Qxf6 {[%clk 0:02:45]} 15. Be2 {[%clk 0:02:43]}  Rae8 {[%clk 0:02:36]} 16. Qb3 {[%clk 0:02:37]}  Bf7 {[%clk 0:02:32]} 17. Rfe1 {[%clk 0:02:31]}  h6 {[%clk 0:02:32]} 18. Bd3 {[%clk 0:02:12]}  Re7 {[%clk 0:02:26]} 19. Re2 {[%clk 0:02:02]}  Rfe8 {[%clk 0:02:26]} 20. Rae1 {[%clk 0:02:03]}  Na5 {[%clk 0:02:08]} 21. Qc2 {[%clk 0:01:46]}  Nc4 {[%clk 0:02:08]} 22. Bxc4 {[%clk 0:01:42]}  dxc4 {[%clk 0:02:09]} 23. Ne5 {[%clk 0:01:42]}  Bd5 {[%clk 0:02:09]} 24. Qg6 {[%clk 0:01:19]}  Qxg6 {[%clk 0:01:25]} 25. Nxg6 {[%clk 0:01:20]}  Rd7 {[%clk 0:01:17]} 26. Bf4 {[%clk 0:01:17]}  Rxe2 {[%clk 0:01:16]} 27. Rxe2 {[%clk 0:01:18]}  Bf7 {[%clk 0:01:04]} 28. Ne5 {[%clk 0:01:09]}  Re7 {[%clk 0:01:04]} 29. Kf1 {[%clk 0:01:07]}  Bd5 {[%clk 0:01:04]} 30. f3 {[%clk 0:01:03]}  Ba5 {[%clk 0:00:54]} 31. Bd2 {[%clk 0:00:58]}  b5 {[%clk 0:00:53]} 32. Ng6 {[%clk 0:00:48]}  Rxe2 {[%clk 0:00:53]} 33. Kxe2 {[%clk 0:00:49]}  Kf7 {[%clk 0:00:54]} 34. Nf4 {[%clk 0:00:47]}  c6 {[%clk 0:00:51]} 35. Be1 {[%clk 0:00:46]}  Bc7 {[%clk 0:00:42]} 36. Bd2 {[%clk 0:00:40]}  g5 {[%clk 0:00:38]} 37. Nh5 {[%clk 0:00:29]}  a5 {[%clk 0:00:33]} 38. g4 {[%clk 0:00:28]}  Bd6 {[%clk 0:00:30]} 39. f4 {[%clk 0:00:25]}  Kg6 {[%clk 0:00:22]} 40. f5+ {[%clk 0:00:19]}  Kf7 {[%clk 0:00:22]} 41. h4 {[%clk 0:00:15]}  Be7 {[%clk 0:00:17]} 42. hxg5 {[%clk 0:00:14]}  hxg5 {[%clk 0:00:17]} 43. Ng3 {[%clk 0:00:14]}  b4 {[%clk 0:00:17]} 44. Ke3 {[%clk 0:00:14]}  Bd6 {[%clk 0:00:16]} 45. Ne4 {[%clk 0:00:14]}  Bf4+ {[%clk 0:00:15]} 46. Ke2 {[%clk 0:00:10]}  Bxe4 {[%clk 0:00:15]} 47. Bxf4 {[%clk 0:00:08]}  gxf4 {[%clk 0:00:16]} 48. Kf2 {[%clk 0:00:07]}  b3 {[%clk 0:00:16]} 49. a3 {[%clk 0:00:06]}  b2 {[%clk 0:00:16]} 50. Ke2 {[%clk 0:00:07]}  b1=Q {[%clk 0:00:16]} 51. g5 {[%clk 0:00:06]}  Qc2+ {[%clk 0:00:16]} 0-1


[Site "https://www.chess.com"]

[Event "Titled Tuesday Blitz July 11 Late 2023"]
[White "Moral Garcia, Serafin"]
[Black "Krzyzanowski, Marcin"]
[WhiteFideId "2201925"]
[BlackFideId "1132199"]
[WhiteElo "2548"]
[BlackElo "2770"]
[Result "1/2-1/2"]
[Round "8"]
[TimeControl "180+2"]
[Date "2023.07.11"]
[WhiteClock "0:00:09"]
[BlackClock "0:00:02"]
[Board "42"]

1. e4 {[%clk 0:03:00]}  c5 {[%clk 0:03:00]} 2. Nf3 {[%clk 0:03:00]}  Nc6 {[%clk 0:03:00]} 3. Bb5 {[%clk 0:03:00]}  a6 {[%clk 0:02:53]} 4. Bxc6 {[%clk 0:02:59]}  dxc6 {[%clk 0:02:52]} 5. d3 {[%clk 0:02:56]}  g6 {[%clk 0:02:49]} 6. O-O {[%clk 0:02:50]}  Bg4 {[%clk 0:02:48]} 7. Nbd2 {[%clk 0:02:45]}  Bg7 {[%clk 0:02:34]} 8. h3 {[%clk 0:02:45]}  Bxf3 {[%clk 0:02:32]} 9. Nxf3 {[%clk 0:02:45]}  e5 {[%clk 0:02:30]} 10. a4 {[%clk 0:02:42]}  a5 {[%clk 0:02:29]} 11. Be3 {[%clk 0:02:40]}  b6 {[%clk 0:02:29]} 12. Nd2 {[%clk 0:02:40]}  Ne7 {[%clk 0:02:04]} 13. Nc4 {[%clk 0:02:31]}  O-O {[%clk 0:02:02]} 14. Qd2 {[%clk 0:02:17]}  Re8 {[%clk 0:01:51]} 15. b4 {[%clk 0:01:50]}  axb4 {[%clk 0:01:42]} 16. a5 {[%clk 0:01:50]}  Nc8 {[%clk 0:01:20]} 17. axb6 {[%clk 0:01:21]}  Rxa1 {[%clk 0:01:21]} 18. Rxa1 {[%clk 0:01:13]}  Nxb6 {[%clk 0:01:21]} 19. Na5 {[%clk 0:01:12]}  Nd7 {[%clk 0:00:44]} 20. Nxc6 {[%clk 0:01:05]}  Qc7 {[%clk 0:00:35]} 21. Na5 {[%clk 0:01:05]}  Ra8 {[%clk 0:00:32]} 22. Nb3 {[%clk 0:01:05]}  Rxa1+ {[%clk 0:00:33]} 23. Nxa1 {[%clk 0:01:05]}  f5 {[%clk 0:00:31]} 24. f3 {[%clk 0:00:50]}  Nb6 {[%clk 0:00:21]} 25. Nb3 {[%clk 0:00:39]}  Na4 {[%clk 0:00:21]} 26. Qf2 {[%clk 0:00:37]}  Bf8 {[%clk 0:00:18]} 27. exf5 {[%clk 0:00:35]}  gxf5 {[%clk 0:00:19]} 28. Qg3+ {[%clk 0:00:34]}  Qg7 {[%clk 0:00:16]} 29. Qxg7+ {[%clk 0:00:34]}  Kxg7 {[%clk 0:00:17]} 30. g4 {[%clk 0:00:34]}  Kf6 {[%clk 0:00:15]} 31. Kf2 {[%clk 0:00:34]}  Ke6 {[%clk 0:00:14]} 32. h4 {[%clk 0:00:31]}  fxg4 {[%clk 0:00:12]} 33. fxg4 {[%clk 0:00:31]}  Kd5 {[%clk 0:00:13]} 34. Kf3 {[%clk 0:00:31]}  c4 {[%clk 0:00:12]} 35. dxc4+ {[%clk 0:00:30]}  Kxc4 {[%clk 0:00:13]} 36. Ke4 {[%clk 0:00:25]}  Kc3 {[%clk 0:00:12]} 37. Kxe5 {[%clk 0:00:25]}  Kxc2 {[%clk 0:00:12]} 38. Na5 {[%clk 0:00:25]}  Kd3 {[%clk 0:00:07]} 39. Bc1 {[%clk 0:00:20]}  Nc5 {[%clk 0:00:06]} 40. Kf6 {[%clk 0:00:18]}  Ne4+ {[%clk 0:00:05]} 41. Kf7 {[%clk 0:00:18]}  Bd6 {[%clk 0:00:04]} 42. Kg7 {[%clk 0:00:17]}  Kc2 {[%clk 0:00:05]} 43. Be3 {[%clk 0:00:16]}  Bc7 {[%clk 0:00:04]} 44. Nc4 {[%clk 0:00:16]}  Kd3 {[%clk 0:00:04]} 45. Bc1 {[%clk 0:00:13]}  Kxc4 {[%clk 0:00:04]} 46. Kxh7 {[%clk 0:00:13]}  Nf6+ {[%clk 0:00:04]} 47. Kg6 {[%clk 0:00:13]}  Nxg4 {[%clk 0:00:05]} 48. h5 {[%clk 0:00:14]}  Kd3 {[%clk 0:00:04]} 49. Kg5 {[%clk 0:00:14]}  Nf2 {[%clk 0:00:04]} 50. h6 {[%clk 0:00:14]}  Ne4+ {[%clk 0:00:04]} 51. Kg6 {[%clk 0:00:14]}  Be5 {[%clk 0:00:04]} 52. h7 {[%clk 0:00:14]}  b3 {[%clk 0:00:04]} 53. Bh6 {[%clk 0:00:12]}  b2 {[%clk 0:00:04]} 54. Bg7 {[%clk 0:00:13]}  Bxg7 {[%clk 0:00:03]} 55. Kxg7 {[%clk 0:00:13]}  b1=Q {[%clk 0:00:03]} 56. h8=Q {[%clk 0:00:14]}  Qb7+ {[%clk 0:00:03]} 57. Kg6 {[%clk 0:00:13]}  Qc6+ {[%clk 0:00:03]} 58. Kf5 {[%clk 0:00:13]}  Qd7+ {[%clk 0:00:02]} 59. Kf4 {[%clk 0:00:12]}  Qd6+ {[%clk 0:00:02]} 60. Qe5 {[%clk 0:00:12]}  Qh6+ {[%clk 0:00:03]} 61. Kf5 {[%clk 0:00:11]}  Qg5+ {[%clk 0:00:03]} 62. Ke6 {[%clk 0:00:11]}  Qg6+ {[%clk 0:00:03]} 63. Ke7 {[%clk 0:00:11]}  Ke3 {[%clk 0:00:02]} 64. Qe6 {[%clk 0:00:10]}  Qg7+ {[%clk 0:00:03]} 65. Qf7 {[%clk 0:00:11]}  Qe5+ {[%clk 0:00:03]} 66. Qe6 {[%clk 0:00:11]}  Qc5+ {[%clk 0:00:03]} 67. Ke8 {[%clk 0:00:10]}  Kf4 {[%clk 0:00:03]} 68. Qh6+ {[%clk 0:00:10]}  Kf5 {[%clk 0:00:02]} 69. Qh3+ {[%clk 0:00:08]}  Kf6 {[%clk 0:00:02]} 70. Qh8+ {[%clk 0:00:08]}  Ke6 {[%clk 0:00:02]} 71. Qg8+ {[%clk 0:00:09]}  Kd6 {[%clk 0:00:02]} 72. Qf8+ {[%clk 0:00:09]}  Kd5 {[%clk 0:00:01]} 73. Qxc5+ {[%clk 0:00:09]}  Kxc5 {[%clk 0:00:02]} 1/2-1/2


[Site "https://www.chess.com"]

[Event "Titled Tuesday Blitz July 11 Late 2023"]
[White "Tanenbaum, Zachary"]
[Black "Jovic, Stanoje"]
[WhiteFideId "2060850"]
[BlackFideId "905020"]
[WhiteElo "2744"]
[BlackElo "2529"]
[Result "1-0"]
[Round "8"]
[TimeControl "180+2"]
[Date "2023.07.11"]
[WhiteClock "0:01:14"]
[BlackClock "0:00:00"]
[Board "44"]

1. e4 {[%clk 0:03:00]}  c6 {[%clk 0:02:59]} 2. d4 {[%clk 0:03:00]}  d5 {[%clk 0:02:59]} 3. exd5 {[%clk 0:03:01]}  cxd5 {[%clk 0:02:59]} 4. Bd3 {[%clk 0:03:02]}  Nc6 {[%clk 0:02:56]} 5. c3 {[%clk 0:03:02]}  e5 {[%clk 0:02:56]} 6. dxe5 {[%clk 0:03:01]}  Nxe5 {[%clk 0:02:57]} 7. Bb5+ {[%clk 0:02:55]}  Nc6 {[%clk 0:02:55]} 8. Nf3 {[%clk 0:02:54]}  Nf6 {[%clk 0:02:55]} 9. O-O {[%clk 0:02:52]}  Be7 {[%clk 0:02:55]} 10. h3 {[%clk 0:02:43]}  O-O {[%clk 0:02:55]} 11. Be3 {[%clk 0:02:43]}  Bf5 {[%clk 0:02:54]} 12. Bd3 {[%clk 0:02:41]}  Be4 {[%clk 0:02:51]} 13. Bc2 {[%clk 0:02:18]}  Re8 {[%clk 0:02:46]} 14. Nbd2 {[%clk 0:02:15]}  a5 {[%clk 0:02:40]} 15. Nxe4 {[%clk 0:02:14]}  dxe4 {[%clk 0:02:40]} 16. Nd4 {[%clk 0:02:13]}  Ne5 {[%clk 0:02:38]} 17. Nf5 {[%clk 0:01:59]}  Bf8 {[%clk 0:02:36]} 18. Ba4 {[%clk 0:01:56]}  Re6 {[%clk 0:02:30]} 19. Bb3 {[%clk 0:01:46]}  Re8 {[%clk 0:02:23]} 20. Bd4 {[%clk 0:01:37]}  Nd3 {[%clk 0:02:18]} 21. Qd2 {[%clk 0:01:33]}  Bc5 {[%clk 0:02:10]} 22. Qg5 {[%clk 0:01:15]}  Nh5 {[%clk 0:00:39]} 23. Nh6+ {[%clk 0:01:13]}  Kf8 {[%clk 0:00:30]} 24. Bxc5+ {[%clk 0:01:14]}  Nxc5 {[%clk 0:00:00]} 25. Qxc5+ {[%clk 0:01:14]} 1-0


[Site "https://www.chess.com"]

[Event "Titled Tuesday Blitz July 11 Late 2023"]
[White "Rozman, Levy"]
[Black "ArchibaldCerveza29"]
[WhiteFideId "2039877"]
[WhiteElo "2744"]
[BlackElo "2527"]
[Result "0-1"]
[Round "8"]
[TimeControl "180+2"]
[Date "2023.07.11"]
[WhiteClock "0:00:16"]
[BlackClock "0:00:15"]
[Board "45"]

1. e4 {[%clk 0:02:58]}  e5 {[%clk 0:02:57]} 2. Nc3 {[%clk 0:02:58]}  Nf6 {[%clk 0:02:56]} 3. f4 {[%clk 0:02:54]}  d5 {[%clk 0:02:44]} 4. fxe5 {[%clk 0:02:54]}  Nxe4 {[%clk 0:02:42]} 5. Qf3 {[%clk 0:02:54]}  f5 {[%clk 0:02:40]} 6. d3 {[%clk 0:02:53]}  Nxc3 {[%clk 0:02:38]} 7. bxc3 {[%clk 0:02:54]}  d4 {[%clk 0:02:36]} 8. Qg3 {[%clk 0:02:48]}  Nc6 {[%clk 0:02:34]} 9. Be2 {[%clk 0:02:47]}  Be6 {[%clk 0:02:34]} 10. c4 {[%clk 0:02:34]}  Qd7 {[%clk 0:02:32]} 11. Bf3 {[%clk 0:02:24]}  O-O-O {[%clk 0:02:29]} 12. Rb1 {[%clk 0:02:23]}  b6 {[%clk 0:02:11]} 13. Ne2 {[%clk 0:02:10]}  Nb4 {[%clk 0:02:09]} 14. O-O {[%clk 0:02:05]}  Nxc2 {[%clk 0:01:56]} 15. a4 {[%clk 0:01:59]}  Qxa4 {[%clk 0:01:47]} 16. Bg5 {[%clk 0:01:55]}  Re8 {[%clk 0:01:42]} 17. Nf4 {[%clk 0:01:55]}  h6 {[%clk 0:01:33]} 18. Nxe6 {[%clk 0:01:47]}  Rxe6 {[%clk 0:01:11]} 19. Bd5 {[%clk 0:01:46]}  Re8 {[%clk 0:01:06]} 20. Bd2 {[%clk 0:01:37]}  Bc5 {[%clk 0:00:50]} 21. Qxg7 {[%clk 0:01:31]}  Ne3 {[%clk 0:00:45]} 22. Ra1 {[%clk 0:01:20]}  Qd7 {[%clk 0:00:26]} 23. Qg6 {[%clk 0:01:13]}  Nxd5 {[%clk 0:00:21]} 24. cxd5 {[%clk 0:01:05]}  Qxd5 {[%clk 0:00:22]} 25. Qxf5+ {[%clk 0:01:04]}  Kb7 {[%clk 0:00:21]} 26. Bf4 {[%clk 0:01:02]}  Rhg8 {[%clk 0:00:20]} 27. Rf2 {[%clk 0:01:02]}  a5 {[%clk 0:00:18]} 28. Qh3 {[%clk 0:00:58]}  Ref8 {[%clk 0:00:18]} 29. g3 {[%clk 0:00:53]}  Rg6 {[%clk 0:00:17]} 30. Re1 {[%clk 0:00:43]}  Re6 {[%clk 0:00:17]} 31. Rfe2 {[%clk 0:00:40]}  a4 {[%clk 0:00:17]} 32. Qf1 {[%clk 0:00:25]}  a3 {[%clk 0:00:16]} 33. Qf2 {[%clk 0:00:25]}  Rg6 {[%clk 0:00:15]} 34. Kf1 {[%clk 0:00:24]}  Qh1+ {[%clk 0:00:13]} 35. Qg1 {[%clk 0:00:24]}  Qxg1+ {[%clk 0:00:14]} 36. Kxg1 {[%clk 0:00:25]}  Rxf4 {[%clk 0:00:14]} 37. e6 {[%clk 0:00:16]}  Rf8 {[%clk 0:00:15]} 0-1


[Site "https://www.chess.com"]

[Event "Titled Tuesday Blitz July 11 Late 2023"]
[White "Deng, Henry"]
[Black "Goryachkina, Aleksandra"]
[WhiteFideId "30965454"]
[BlackFideId "4147103"]
[WhiteElo "2518"]
[BlackElo "2672"]
[Result "1/2-1/2"]
[Round "8"]
[TimeControl "180+2"]
[Date "2023.07.11"]
[WhiteClock "0:00:14"]
[BlackClock "0:00:04"]
[Board "48"]

1. e4 {[%clk 0:03:00]}  c5 {[%clk 0:03:00]} 2. Nc3 {[%clk 0:03:00]}  e6 {[%clk 0:02:58]} 3. Nf3 {[%clk 0:02:57]}  Nc6 {[%clk 0:02:58]} 4. d4 {[%clk 0:02:56]}  cxd4 {[%clk 0:02:58]} 5. Nxd4 {[%clk 0:02:56]}  Qc7 {[%clk 0:02:58]} 6. Be3 {[%clk 0:02:54]}  a6 {[%clk 0:02:58]} 7. f4 {[%clk 0:02:54]}  b5 {[%clk 0:02:49]} 8. Qf3 {[%clk 0:02:47]}  Bb7 {[%clk 0:02:48]} 9. Bd3 {[%clk 0:02:36]}  Rc8 {[%clk 0:02:40]} 10. O-O-O {[%clk 0:02:30]}  Nf6 {[%clk 0:02:33]} 11. Kb1 {[%clk 0:02:26]}  Nxd4 {[%clk 0:02:22]} 12. Bxd4 {[%clk 0:02:25]}  Bc5 {[%clk 0:02:21]} 13. Bxf6 {[%clk 0:01:46]}  gxf6 {[%clk 0:02:20]} 14. f5 {[%clk 0:01:46]}  Qe5 {[%clk 0:02:08]} 15. Qh5 {[%clk 0:01:39]}  Bc6 {[%clk 0:01:47]} 16. Be2 {[%clk 0:01:17]}  Bd4 {[%clk 0:01:22]} 17. fxe6 {[%clk 0:01:13]}  dxe6 {[%clk 0:01:20]} 18. Rd3 {[%clk 0:00:50]}  Ke7 {[%clk 0:01:15]} 19. Rhd1 {[%clk 0:00:48]}  Qxh5 {[%clk 0:01:12]} 20. Bxh5 {[%clk 0:00:46]}  Bxc3 {[%clk 0:01:12]} 21. bxc3 {[%clk 0:00:45]}  Rc7 {[%clk 0:01:07]} 22. Bf3 {[%clk 0:00:43]}  Rhc8 {[%clk 0:01:04]} 23. Kb2 {[%clk 0:00:42]}  a5 {[%clk 0:00:55]} 24. a3 {[%clk 0:00:40]}  Be8 {[%clk 0:00:52]} 25. h4 {[%clk 0:00:32]}  Rc4 {[%clk 0:00:47]} 26. Kb3 {[%clk 0:00:28]}  R4c5 {[%clk 0:00:26]} 27. R1d2 {[%clk 0:00:22]}  h6 {[%clk 0:00:26]} 28. Kb2 {[%clk 0:00:20]}  Bc6 {[%clk 0:00:26]} 29. Rd4 {[%clk 0:00:19]}  Rc7 {[%clk 0:00:25]} 30. R4d3 {[%clk 0:00:19]}  Rd7 {[%clk 0:00:21]} 31. Rxd7+ {[%clk 0:00:15]}  Bxd7 {[%clk 0:00:21]} 32. Kb3 {[%clk 0:00:15]}  Bc6 {[%clk 0:00:21]} 33. Rd4 {[%clk 0:00:15]}  Re5 {[%clk 0:00:16]} 34. c4 {[%clk 0:00:15]}  Rc5 {[%clk 0:00:12]} 35. cxb5 {[%clk 0:00:14]}  Rxb5+ {[%clk 0:00:12]} 36. Kc3 {[%clk 0:00:15]}  Rb1 {[%clk 0:00:11]} 37. Rc4 {[%clk 0:00:14]}  Bd7 {[%clk 0:00:10]} 38. Rc5 {[%clk 0:00:14]}  a4 {[%clk 0:00:10]} 39. e5 {[%clk 0:00:13]}  fxe5 {[%clk 0:00:10]} 40. Rxe5 {[%clk 0:00:12]}  f5 {[%clk 0:00:10]} 41. Ra5 {[%clk 0:00:12]}  Kf6 {[%clk 0:00:06]} 42. Ra7 {[%clk 0:00:12]}  Be8 {[%clk 0:00:06]} 43. Ra8 {[%clk 0:00:12]}  Bd7 {[%clk 0:00:03]} 44. Ra7 {[%clk 0:00:12]}  Be8 {[%clk 0:00:04]} 45. Ra8 {[%clk 0:00:13]}  Bd7 {[%clk 0:00:04]} 46. Ra7 {[%clk 0:00:14]} 1/2-1/2


[Site "https://www.chess.com"]